bitfinex/quotes_ETHUSD_20220226
["timestamp","ask_amount","ask_price","bid_price","bid_amount"]
[1645909440999,0.03067152,2825.9,2825.8,8.26910631]
[1645909444045,0.08692,2826.7,2825.8,8.26910631]
[1645909444250,0.08692,2826.7,2825.9,1.23527536]
[1645909444443,0.08692,2826.7,2825.9,0.0712]
[1645909445049,0.08692,2826.7,2825.9,3.5712]
[1645909445704,0.08692,2826.7,2825.9,15.7141]
[1645909445913,0.02604587,2826.8,2826.0,1.8483103]
[1645909446109,0.02604587,2826.8,2826.1,4.9954103]
[1645909446311,0.02604587,2826.8,2826.2,1.49535701]
[1645909446610,0.02604587,2826.8,2826.5,1.27448186]
[1645909448610,0.02604587,2826.8,2826.3,3.5]
[1645909449039,0.00208196,2826.6,2826.3,3.5]
[1645909449239,0.00208196,2826.6,2826.2,1.1959]
[1645909449441,0.00208196,2826.6,2826.3,4.99529977]
[1645909449638,0.00208196,2826.6,2826.4,1.49529977]
[1645909449836,0.00208196,2826.6,2826.5,1.34345098]
[1645909450639,0.00208196,2826.6,2826.5,2.83872142]
[1645909450837,0.00208196,2826.6,2826.5,1.34345098]
[1645909451439,0.00208196,2826.6,2826.5,6.33872255]
[1645909451640,0.00208196,2826.6,2826.5,2.83872255]
[1645909451841,0.00208196,2826.6,2826.5,6.33872255]
[1645909452049,0.00208196,2826.6,2826.5,17.48162255]
[1645909452241,0.03421448,2827.0,2826.7,10.79]
[1645909452439,0.03421448,2827.0,2826.8,12.07037157]
[1645909452704,0.00358131,2827.7,2827.1,0.3529]
[1645909452904,0.00358131,2827.5,2827.2,3.5]
[1645909453106,0.00358131,2827.8,2827.2,3.5]
[1645909453305,0.88890705,2828.0,2827.2,4.5]
[1645909453507,0.74248836,2828.0,2827.2,4.5]
[1645909453707,0.74248836,2828.0,2827.7,1.09309115]
[1645909453903,1.34244209,2828.4,2827.7,1.09309115]
[1645909454506,1.34244209,2828.4,2827.7,1.16429115]
[1645909454907,5.55873122,2828.6,2827.7,1.16429115]
[1645909455304,0.00122368,2828.2,2827.7,1.16429115]
[1645909455504,0.5,2828.0,2827.7,1.16429115]
[1645909455706,0.00122368,2828.2,2827.7,1.16429115]
[1645909456107,3.1666,2828.6,2827.7,1.16429115]
[1645909456540,0.00406878,2828.1,2827.7,1.16429115]
[1645909456743,0.00406878,2828.1,2827.7,1.51719115]
[1645909456942,0.00406878,2828.1,2827.8,7.0726]
[1645909457353,7.36,2828.8,2827.8,7.0726]
[1645909457749,0.00406878,2828.1,2827.8,7.0726]
[1645909458547,3.5,2828.8,2827.8,7.0726]
[1645909458744,0.88453,2829.0,2827.8,7.0726]
[1645909458945,0.00122519,2828.1,2827.8,7.0726]
[1645909459746,0.00356445,2828.9,2827.8,7.0726]
[1645909459951,0.00122519,2828.1,2827.8,7.0726]
[1645909460991,0.00356445,2828.7,2827.8,7.0726]
[1645909461189,0.00406878,2828.1,2827.8,7.0726]
[1645909462192,0.88462,2828.7,2827.8,7.0726]
[1645909462391,0.00406878,2828.1,2827.8,7.0726]
[1645909463398,0.00356445,2828.6,2827.8,7.0726]
[1645909463595,0.00406878,2828.1,2827.8,7.0726]
[1645909463796,0.84540367,2828.7,2827.8,7.0726]
[1645909464053,3.5,2828.9,2827.8,7.0726]
[1645909464655,3.5,2828.9,2827.9,0.01530251]
[1645909464853,0.88461,2828.7,2827.9,0.01530251]
[1645909467360,0.00405861,2828.4,2827.9,0.01530251]
[1645909468102,0.88461,2828.7,2827.9,0.01530251]
[1645909468403,0.00405861,2828.3,2827.9,0.01530251]
[1645909468608,0.00405861,2828.3,2828.0,7.0721]
[1645909468814,4.01405861,2828.3,2828.0,7.0721]
[1645909469006,4.31405861,2828.3,2828.0,7.0721]
[1645909469207,5.31405861,2828.3,2828.0,7.0721]
[1645909469407,5.49008108,2828.3,2828.0,7.0721]
[1645909470110,1.06665953,2828.2,2828.0,7.0721]
[1645909470308,4.89489,2828.1,2828.0,7.0721]
[1645909470513,5.19489,2828.1,2828.0,4.67989655]
[1645909470707,6.19489,2828.1,2828.0,4.67989655]
[1645909471108,6.19489,2828.1,2828.0,4.32617928]
[1645909471559,6.37497108,2828.1,2828.0,1.53589575]
[1645909471763,6.5,2828.0,2827.9,0.01530251]
[1645909471962,0.3529,2827.9,2826.6,0.00233345]
[1645909472162,0.5792,2827.4,2826.6,0.02356248]
[1645909472360,6.08035,2827.3,2826.6,0.02356248]
[1645909472558,5.2068,2827.3,2826.6,0.02356248]
[1645909472761,2.7068,2827.3,2826.6,0.02356248]
[1645909472965,2.7068,2827.3,2826.6,0.00233345]
[1645909473464,1.4068,2827.3,2826.6,0.00233345]
[1645909473661,0.51,2827.3,2826.6,0.00233345]
[1645909473862,0.00354683,2827.6,2826.6,0.00233345]
[1645909474261,0.00354683,2827.6,2826.7,0.1414]
[1645909475891,0.88498,2827.5,2826.7,0.1414]
[1645909476385,0.88498,2827.5,2826.6,0.16495739]
[1645909476586,0.88498,2827.5,2826.6,0.14373345]
[1645909477088,3.50354683,2827.6,2826.6,0.14373345]
[1645909478090,0.88498,2827.5,2826.6,0.14373345]
[1645909479347,1.01138592,2827.5,2826.6,0.14373345]
[1645909480348,4.3851,2827.4,2826.6,0.14373345]
[1645909480546,0.88508,2827.2,2826.6,0.14373345]
[1645909481547,3.5,2827.1,2826.6,0.00233345]
[1645909481751,0.88508,2827.2,2826.6,0.00233345]
[1645909481947,3.5,2827.1,2826.6,0.00233345]
[1645909484392,1.87508,2827.2,2826.6,0.00233345]
[1645909484594,0.12555136,2827.1,2826.6,0.00233345]
[1645909484794,3.62555136,2827.1,2826.6,0.00233345]
[1645909486652,0.12555136,2827.1,2826.6,0.00233345]
[1645909487249,3.62555136,2827.1,2826.6,0.00233345]
[1645909489253,0.12555136,2827.1,2826.6,0.00233345]
[1645909490055,0.12555136,2827.1,2826.5,2.97173345]
[1645909491993,0.12555136,2827.1,2826.6,7.0751]
[1645909492494,0.12555136,2827.1,2826.9,1.03290778]
[1645909493305,0.12555136,2827.1,2826.9,1.38580778]
[1645909493503,0.12555136,2827.1,2827.0,7.4275]
[1645909494258,0.00354683,2827.8,2827.0,7.4275]
[1645909494462,0.00354683,2828.0,2827.1,10.79]
[1645909494657,0.00354683,2828.0,2827.2,0.4241]
[1645909494859,0.88849049,2828.1,2827.2,0.3529]
[1645909495056,0.00354683,2828.0,2827.8,1.34543214]
[1645909495258,0.88849049,2828.1,2827.8,1.34543214]
[1645909495658,0.88849049,2828.1,2827.2,3.0542]
[1645909495862,0.00354683,2828.0,2827.2,3.0542]
[1645909496664,0.89203732,2828.0,2827.2,3.0542]
[1645909496861,0.88849049,2828.0,2827.2,3.0542]
[1645909497462,0.88849049,2828.0,2827.7,1.08861852]
[1645909497694,0.88849049,2828.0,2827.2,3.0542]
[1645909497899,0.88849049,2828.0,2827.2,13.8442]
[1645909498601,0.88849049,2828.1,2827.2,13.8442]
[1645909498803,0.89254544,2828.2,2827.4,11.1429]
[1645909499101,0.00354683,2828.0,2827.9,0.04071211]
[1645909499303,0.89254544,2828.2,2827.9,0.04071211]
[1645909499608,0.88849049,2828.2,2827.9,0.04071211]
[1645909499803,0.89254594,2828.2,2827.9,0.04071211]
[1645909500705,0.88849049,2828.0,2827.9,0.04071211]
[1645909500904,3.5,2828.1,2827.9,0.04071211]
[1645909501303,4.5,2828.1,2827.9,0.04071211]
[1645909501554,3.5,2828.0,2827.9,0.04071211]
[1645909501756,3.8,2828.0,2827.9,0.02418417]
[1645909501955,4.8,2828.0,2827.9,0.02418417]
[1645909502157,6.13134706,2828.0,2827.9,0.02418417]
[1645909502357,6.64134706,2828.0,2827.9,0.02418417]
[1645909502959,5.31,2828.0,2827.9,0.02418417]
[1645909504360,1.81,2828.0,2827.9,0.02418417]
[1645909504664,3.14723741,2828.0,2827.9,0.03117996]
[1645909504862,2.14723741,2828.0,2827.9,0.03117996]
[1645909505061,3.14723741,2828.0,2827.9,0.03117996]
[1645909505297,2.14723741,2828.0,2827.9,0.03117996]
[1645909505496,3.14723741,2828.0,2827.9,0.03117996]
[1645909505695,2.14723741,2828.0,2827.9,0.03117996]
[1645909505896,3.14723741,2828.0,2827.9,0.03117996]
[1645909506100,6.64767203,2828.0,2827.9,0.03117996]
[1645909506499,5.31,2828.0,2827.9,0.03117996]
[1645909509252,1.76991,2827.9,2827.5,7.0734]
[1645909509451,1.77717502,2827.6,2827.5,7.0734]
[1645909510053,4.38496,2827.6,2827.5,7.0734]
[1645909510252,5.19496,2827.6,2827.5,7.0734]
[1645909510854,7.53328252,2827.6,2827.5,7.0734]
[1645909511254,23.58184108,2827.6,2827.5,7.0734]
[1645909511456,24.13376706,2827.6,2827.5,7.0734]
[1645909511853,25.92368985,2827.6,2827.5,8.524e-05]
[1645909512068,10.79,2827.2,2826.6,0.02041006]
[1645909512259,0.89323147,2826.7,2826.6,0.02041006]
[1645909512462,5.1929,2826.7,2826.6,0.02041006]
[1645909512697,5.1929,2826.7,2825.9,0.0712]
[1645909512903,0.89360917,2826.6,2825.9,0.0712]
[1645909513107,4.01,2826.5,2826.4,0.00510243]
[1645909513303,4.89538,2826.5,2826.4,0.00510243]
[1645909513904,4.89538,2826.5,2825.9,0.0712]
[1645909514101,4.89538,2826.5,2826.3,0.00509748]
[1645909514707,3.5,2826.4,2826.3,0.00509748]
[1645909514909,8.02882917,2826.4,2826.3,0.00509748]
[1645909515115,19.30432,2826.4,2825.8,0.02570631]
[1645909515307,0.89296705,2826.3,2825.8,0.02570631]
[1645909515607,0.89296705,2826.3,2825.8,0.0457171]
[1645909515608,4.90296705,2826.2,2825.8,0.0457171]
[1645909515807,0.88565,2826.1,2825.8,0.0457171]
[1645909516009,4.01,2826.0,2825.8,0.0457171]
[1645909516206,3.5,2825.9,2825.8,0.0457171]
[1645909516451,4.01,2825.9,2825.8,0.02570631]
[1645909516646,4.01,2825.9,2825.8,0.03070882]
[1645909516846,5.31,2825.9,2825.8,0.03070882]
[1645909517445,5.31,2825.9,2825.8,0.02570631]
[1645909519258,16.1,2825.9,2825.8,0.02570631]
[1645909520329,5.31,2825.9,2825.8,0.02570631]
[1645909521322,17.22991777,2825.9,2825.8,0.02570631]
[1645909521723,16.1,2825.9,2825.8,0.02570631]
[1645909521923,5.31,2825.9,2825.8,0.02570631]
[1645909522125,1.39555,2825.9,2825.8,0.02570631]
[1645909522328,2.27114,2826.0,2825.8,0.02570631]
[1645909522329,0.5,2826.0,2825.8,0.02570631]
[1645909523955,0.8855,2825.9,2825.8,0.03045085]
[1645909524547,1.3955,2825.9,2825.8,0.03045085]
[1645909524749,1.6955,2825.9,2825.8,0.02570631]
[1645909525453,1.3955,2825.9,2825.8,0.02570631]
[1645909528106,0.51,2825.9,2825.8,0.02570631]
[1645909528703,0.8,2826.0,2825.8,0.02570631]
[1645909529303,0.5,2826.0,2825.8,0.02570631]
[1645909529708,0.88531,2826.6,2825.8,0.02570631]
[1645909530005,2.2304,2826.7,2825.8,0.03045165]
[1645909530204,1.5304,2826.7,2825.8,0.03045165]
[1645909530805,1.5304,2826.7,2825.8,0.02570631]
[1645909531004,1.5304,2826.7,2826.1,0.00474487]
[1645909531545,0.3,2826.7,2826.1,0.00474487]
[1645909531743,0.88526,2826.7,2826.1,0.00474487]
[1645909531947,0.88526,2826.7,2825.8,0.02570631]
[1645909532145,0.88526,2826.7,2826.3,0.00474455]
[1645909532356,2.0,2826.9,2826.3,0.00474455]
[1645909532550,0.89296705,2827.6,2826.3,0.00474455]
[1645909532756,1.39296705,2827.7,2826.3,0.00474455]
[1645909532951,1.39296705,2827.7,2826.4,0.3529]
[1645909533160,0.89296705,2827.8,2826.6,0.3529]
[1645909533352,0.89651388,2827.9,2827.0,1.20775486]
[1645909533755,0.89651388,2827.9,2826.8,3.5]
[1645909534251,0.89651388,2827.9,2826.8,3.5712]
[1645909534551,0.00354683,2827.9,2826.8,3.5712]
[1645909534752,0.00354683,2827.9,2826.9,1.24803993]
[1645909534951,0.00354683,2827.9,2827.0,3.5]
[1645909535198,0.00354683,2827.9,2826.9,1.24803993]
[1645909535397,0.00354683,2827.9,2827.0,3.49916678]
[1645909537101,1.18495,2827.7,2826.8,0.0712]
[1645909537300,1.19296705,2827.7,2826.9,7.074]
[1645909537499,1.70296705,2827.7,2826.9,7.074]
[1645909537699,0.5,2827.1,2826.9,7.074]
[1645909537904,0.89296705,2827.5,2826.9,7.074]
[1645909538410,0.8851,2827.3,2826.9,7.074]
[1645909539252,2.07806705,2827.3,2826.9,7.074]
[1645909539453,1.77059,2827.1,2826.9,7.074]
[1645909539850,0.51,2827.0,2826.9,7.074]
[1645909540048,0.81,2827.0,2826.9,7.074]
[1645909540453,1.70296705,2827.0,2826.9,4.68102682]
[1645909541453,3.47356705,2827.0,2826.9,4.68102682]
[1645909541652,2.5806,2827.0,2826.9,4.68102682]
[1645909541852,4.47356705,2827.0,2826.9,4.68102682]
[1645909542053,14.26356705,2827.0,2826.9,4.68102682]
[1645909542252,4.47356705,2827.0,2826.9,4.68102682]
[1645909542698,3.5806,2827.0,2826.9,4.68102682]
[1645909542900,4.46976172,2827.0,2826.9,4.68102682]
[1645909543101,3.5806,2827.0,2826.9,4.68102682]
[1645909544006,2.69922154,2827.0,2826.9,4.68102682]
[1645909544304,0.81,2827.0,2826.9,4.68102682]
[1645909544503,1.81,2827.0,2826.9,4.68102682]
[1645909544705,0.81,2827.0,2826.9,4.68102682]
[1645909545805,1.69922154,2827.0,2826.9,4.68102682]
[1645909546461,0.81,2827.0,2826.9,4.68102682]
[1645909546853,1.69922154,2827.0,2826.9,4.68102682]
[1645909551917,1.64922154,2827.0,2826.9,4.68102682]
[1645909556153,0.76,2827.0,2826.9,4.68102682]
[1645909556952,2.0998472,2827.0,2826.9,4.68102682]
[1645909557152,0.76,2827.0,2826.9,4.68102682]
[1645909557352,1.9563,2827.0,2826.9,4.68102682]
[1645909558501,1.9563,2827.0,2826.9,4.67958601]
[1645909558701,0.76,2827.0,2826.9,4.67958601]
[1645909559400,1.6520887,2827.0,2826.9,4.67958601]
[1645909562860,0.76,2827.0,2826.9,4.67958601]
[1645909564863,2.0998472,2827.0,2826.9,4.67958601]
[1645909565062,0.76,2827.0,2826.9,4.67958601]
[1645909565803,2.0998472,2827.0,2826.9,4.67958601]
[1645909567001,2.09991898,2827.0,2826.9,2.8894471]
[1645909567204,0.76,2827.0,2826.9,2.8894471]
[1645909569044,2.09991898,2827.0,2826.9,2.8894471]
[1645909569645,2.09991898,2827.0,2826.9,2.88541829]
[1645909572709,0.25,2827.0,2826.9,2.88541829]
[1645909572914,0.89404152,2827.0,2826.9,2.88541829]
[1645909576748,0.89404152,2827.2,2827.0,1.26979073]
[1645909577358,0.89404152,2827.1,2827.0,1.26979073]
[1645909577963,0.89404152,2827.2,2827.0,1.26979073]
[1645909578156,0.89404152,2827.1,2827.0,1.26979073]
[1645909578760,0.89404152,2827.1,2826.9,2.88541829]
[1645909580210,1.33991898,2827.3,2826.9,2.88541829]
[1645909580211,0.89404152,2827.0,2826.9,2.88541829]
[1645909580411,0.89404152,2827.0,2826.9,4.26322115]
[1645909580612,0.89404152,2827.0,2826.9,2.88541829]
[1645909583225,0.89404152,2827.1,2826.9,2.88541829]
[1645909583423,0.89404152,2827.0,2826.9,2.88541829]
[1645909583622,0.89404152,2827.1,2826.9,2.88541829]
[1645909583970,1.33991898,2827.3,2826.9,2.88541829]
[1645909583971,0.89404152,2827.0,2826.9,2.88541829]
[1645909584159,1.33991898,2827.1,2826.9,2.88541829]
[1645909584360,1.33991898,2827.0,2826.9,2.88541829]
[1645909584559,1.06300455,2827.1,2826.9,2.88541829]
[1645909584758,1.36300455,2827.1,2826.9,2.88541829]
[1645909585171,1.06300455,2827.1,2826.9,2.88541829]
[1645909585367,1.36300455,2827.1,2826.9,2.88541829]
[1645909585767,0.88519,2827.0,2826.9,2.88541829]
[1645909587171,1.39519,2827.0,2826.9,2.88541829]
[1645909588209,3.38646293,2827.1,2826.9,2.88541829]
[1645909588210,0.3,2827.1,2826.9,2.88541829]
[1645909588408,1.34264378,2827.0,2826.9,2.88541829]
[1645909589507,2.08646293,2827.2,2826.9,2.88541829]
[1645909589705,3.08646293,2827.2,2826.9,2.88541829]
[1645909589907,2.08646293,2827.2,2826.9,2.88541829]
[1645909590106,3.08646293,2827.2,2826.9,2.88541829]
[1645909590312,1.34278313,2827.0,2826.9,2.88541829]
[1645909590506,2.22797313,2827.0,2826.9,2.88541829]
[1645909591105,2.22612718,2827.0,2826.9,2.88541829]
[1645909591306,0.88519,2827.0,2826.9,2.88541829]
[1645909594058,1.18519,2827.0,2826.9,2.88541829]
[1645909594260,1.69519,2827.0,2826.9,2.88541829]
[1645909595909,1.69519,2827.0,2826.9,2.88388829]
[1645909596106,1.69519,2827.0,2826.9,2.51257929]
[1645909597607,1.69519,2827.0,2826.9,2.49661929]
[1645909600049,3.48559571,2827.0,2826.9,2.49661929]
[1645909600247,4.48559571,2827.0,2826.9,2.49661929]
[1645909600454,1.39519,2827.0,2826.9,2.49661929]
[1645909601652,2.73792266,2827.0,2826.9,2.49661929]
[1645909601851,4.03792266,2827.0,2826.9,2.49661929]
[1645909602251,2.69519,2827.0,2826.9,2.49661929]
[1645909603605,1.69519,2827.0,2826.9,2.49661929]
[1645909603805,2.69519,2827.0,2826.9,2.49661929]
[1645909604004,1.69519,2827.0,2826.9,2.49661929]
[1645909604204,2.69519,2827.0,2826.9,2.49661929]
[1645909604406,1.69519,2827.0,2826.9,2.49661929]
[1645909604605,2.69519,2827.0,2826.9,2.49661929]
[1645909604806,3.48559571,2827.0,2826.9,2.49661929]
[1645909605007,2.69519,2827.0,2826.9,2.49661929]
[1645909605206,1.69519,2827.0,2826.9,2.49661929]
[1645909605406,2.69519,2827.0,2826.9,2.49661929]
[1645909605715,1.34276989,2827.0,2826.9,2.49661929]
[1645909606107,2.30040571,2827.3,2826.9,3.54707559]
[1645909606108,1.34276989,2827.1,2826.9,3.54707559]
[1645909606761,1.34276989,2827.0,2826.9,3.54707559]
[1645909607763,1.34276989,2827.1,2826.9,3.54707559]
[1645909612215,1.34276989,2827.1,2826.9,2.49661929]
[1645909613825,1.34276989,2827.0,2826.9,2.49661929]
[1645909614065,4.93736571,2827.1,2826.9,2.49661929]
[1645909614264,5.23736571,2827.1,2826.9,2.49661929]
[1645909617583,1.79040571,2827.0,2826.9,2.49661929]
[1645909619027,5.51706571,2827.1,2826.9,2.49661929]
[1645909619216,5.76817509,2827.1,2826.9,2.49661929]
[1645909620020,3.97776938,2827.1,2826.9,1.58218804]
[1645909620417,1.79050024,2827.0,2826.9,1.58218804]
[1645909620617,5.51716024,2827.1,2826.9,1.58218804]
[1645909620819,1.79050024,2827.0,2826.9,1.58218804]
[1645909623170,3.63746024,2827.1,2826.9,1.58218804]
[1645909623374,2.09050024,2827.0,2826.9,1.58218804]
[1645909623571,1.79050024,2827.0,2826.9,1.58218804]
[1645909624176,2.99516,2827.1,2826.9,1.58218804]
[1645909624177,3.09050024,2827.1,2826.9,1.58218804]
[1645909624373,1.34315457,2827.0,2826.9,1.58218804]
[1645909625606,1.3,2827.1,2826.9,1.58218804]
[1645909625807,0.3,2827.1,2826.9,1.58218804]
[1645909626007,3.09050024,2827.2,2826.9,1.58218804]
[1645909626206,3.39050024,2827.2,2826.9,1.58218804]
[1645909626605,1.79050024,2827.1,2826.9,1.58218804]
[1645909628414,2.48511,2827.2,2826.9,1.58218804]
[1645909628415,2.39050024,2827.2,2826.9,1.58218804]
[1645909628612,3.39050024,2827.2,2826.9,1.58218804]
[1645909628812,3.09050024,2827.2,2826.9,1.58218804]
[1645909629056,1.79050024,2827.1,2826.9,1.58218804]
[1645909629461,3.39050024,2827.2,2826.9,1.58218804]
[1645909629656,2.09050024,2827.2,2826.9,1.58218804]
[1645909629857,3.09050024,2827.2,2826.9,1.58218804]
[1645909630056,1.79050024,2827.1,2826.9,1.58218804]
[1645909630459,2.39050024,2827.2,2826.9,1.58218804]
[1645909630658,3.39050024,2827.2,2826.9,1.58218804]
[1645909630858,2.09050024,2827.2,2826.9,1.58218804]
[1645909631161,3.09050024,2827.2,2826.9,1.58218804]
[1645909631560,1.79050024,2827.2,2826.9,1.58218804]
[1645909631764,0.89586762,2827.1,2827.0,6.5]
[1645909631973,4.18346349,2827.6,2827.0,22.68387034]
[1645909631974,0.89545617,2827.3,2827.0,22.68387034]
[1645909632360,3.73620589,2827.6,2827.0,22.68387034]
[1645909632812,1.34324264,2827.6,2827.0,22.68387034]
[1645909633410,1.34324264,2827.6,2827.5,1.12657389]
[1645909633813,1.34324264,2827.6,2827.0,22.68387034]
[1645909635614,1.34324264,2827.6,2827.5,1.06115775]
[1645909635820,0.00354683,2827.7,2827.5,4.56115775]
[1645909636016,1.34324264,2827.9,2827.5,1.06115775]
[1645909636216,1.79050024,2828.1,2827.5,1.06115775]
[1645909636217,1.34324264,2827.8,2827.5,1.06115775]
[1645909636858,1.34324264,2827.8,2827.6,3.5]
[1645909637059,1.34324264,2827.9,2827.6,3.5]
[1645909637268,1.34324264,2827.9,2827.5,1.06115775]
[1645909637660,1.34324264,2827.9,2827.5,4.56115775]
[1645909638264,1.34324264,2827.9,2827.5,1.06115775]
[1645909638464,1.34324264,2827.9,2827.3,3.5]
[1645909638664,1.34324264,2827.9,2827.1,1.17]
[1645909638665,1.34324264,2827.7,2827.4,12.565]
[1645909638866,1.34324264,2827.6,2827.4,12.565]
[1645909639065,1.64324264,2827.6,2827.4,12.565]
[1645909640725,2.52825264,2827.6,2827.4,12.565]
[1645909641116,3.52825264,2827.6,2827.4,12.565]
[1645909641917,3.97551024,2827.6,2827.4,10.17245863]
[1645909642629,2.30050024,2827.5,2827.4,10.17245863]
[1645909642823,0.51,2827.5,2827.4,10.17245863]
[1645909643820,2.29717884,2827.5,2827.4,10.17245863]
[1645909644758,2.47725992,2827.5,2827.4,10.17245863]
[1645909646359,0.69008108,2827.5,2827.4,6.77751097]
[1645909646562,0.3529,2827.4,2826.6,0.0190268]
[1645909646765,1.34052473,2826.9,2826.6,0.0190268]
[1645909646961,0.51,2826.8,2826.6,0.0190268]
[1645909647368,0.81,2826.8,2826.4,0.1414]
[1645909647564,2.15052473,2826.8,2826.4,0.14615667]
[1645909647837,1.69537,2826.8,2826.4,0.14615667]
[1645909648038,1.18537,2826.8,2826.4,0.14615667]
[1645909648430,0.3,2826.8,2826.4,0.1414]
[1645909648632,2.85052473,2827.2,2826.4,0.1414]
[1645909648833,2.85052473,2827.2,2826.6,1.27960016]
[1645909648834,1.3,2827.1,2826.6,1.27960016]
[1645909649030,0.3,2827.1,2826.4,0.14978167]
[1645909649231,0.81,2827.2,2826.4,0.14615662]
[1645909649530,0.88514,2827.1,2826.4,0.14615662]
[1645909649730,0.88514,2827.1,2826.4,0.1414]
[1645909649930,0.88514,2827.1,2826.4,0.14615669]
[1645909650931,0.88514,2827.1,2826.4,0.1414]
[1645909651131,0.88514,2827.1,2826.4,3.64615671]
[1645909651771,0.88514,2827.1,2826.4,0.14615671]
[1645909652173,0.88514,2827.1,2826.4,0.1414]
[1645909652372,0.88514,2827.1,2826.4,3.64615672]
[1645909652572,0.88514,2827.1,2826.4,0.14615672]
[1645909652774,0.88514,2827.1,2826.4,3.64615672]
[1645909653276,0.6,2827.2,2826.4,3.6414]
[1645909653474,0.6,2827.2,2826.4,3.64615672]
[1645909653675,0.3,2827.2,2826.4,3.64615672]
[1645909654075,2.64052473,2827.3,2826.4,3.64615672]
[1645909654479,2.64052473,2827.3,2826.4,3.6414]
[1645909654677,1.34052473,2827.3,2826.4,3.64615674]
[1645909654876,2.34052473,2827.3,2826.4,3.64615674]
[1645909655075,1.34052473,2827.3,2826.4,3.64615674]
[1645909655721,1.34052473,2827.3,2826.4,3.6414]
[1645909655919,1.34052473,2827.3,2826.4,3.64615673]
[1645909656916,1.34052473,2827.3,2826.4,3.6414]
[1645909657116,1.34052473,2827.3,2826.4,3.64615673]
[1645909657318,1.34052473,2827.3,2826.4,0.14615673]
[1645909657518,1.34052473,2827.3,2826.4,3.64615673]
[1645909658121,1.34052473,2827.3,2826.4,3.6414]
[1645909658325,1.34052473,2827.3,2826.4,3.64615673]
[1645909659256,1.34052473,2827.3,2826.4,3.6414]
[1645909659461,1.34052473,2827.3,2826.4,3.64615673]
[1645909659659,1.34052473,2827.3,2826.4,0.14615673]
[1645909659859,1.34052473,2827.3,2826.4,3.64615673]
[1645909660459,1.34052473,2827.3,2826.4,3.6414]
[1645909660659,1.34052473,2827.3,2826.4,3.64615673]
[1645909660866,1.34052473,2827.3,2826.4,3.59615673]
[1645909661662,1.34052473,2827.3,2826.4,3.5914]
[1645909661962,1.34052473,2827.3,2826.4,3.59615673]
[1645909663022,1.34052473,2827.3,2826.4,3.5914]
[1645909663214,1.34052473,2827.3,2826.4,3.59615673]
[1645909664114,1.34052473,2827.3,2826.4,3.5914]
[1645909664315,1.34052473,2827.3,2826.4,3.59615673]
[1645909665217,1.34052473,2827.3,2826.4,3.5914]
[1645909665418,1.34052473,2827.3,2826.5,1.49535007]
[1645909666117,3.57393473,2827.4,2826.5,1.49535007]
[1645909666575,1.34052473,2827.3,2826.5,1.49535007]
[1645909666776,0.88515,2827.1,2826.5,1.49535007]
[1645909667484,0.88515,2827.1,2826.4,3.61518425]
[1645909667780,0.88515,2827.1,2826.4,0.0914]
[1645909667781,2.22567473,2827.1,2826.4,0.0914]
[1645909668082,2.22567473,2827.1,2826.4,0.09615671]
[1645909668679,3.36227473,2827.1,2826.4,0.09615671]
[1645909668880,3.36227473,2827.1,2826.4,0.0914]
[1645909669081,1.34052473,2827.0,2826.4,0.0914]
[1645909669280,1.34052473,2827.0,2826.4,0.09615669]
[1645909670082,1.34052473,2827.0,2826.4,0.0914]
[1645909670318,1.34052473,2827.0,2826.4,0.09615668]
[1645909671121,3.82567473,2827.1,2826.4,0.09615668]
[1645909671410,3.52567473,2827.1,2826.4,0.0914]
[1645909671610,3.52567473,2827.1,2826.4,0.09615668]
[1645909672014,2.18515,2827.1,2826.4,0.09615668]
[1645909672311,1.18515,2827.1,2826.4,0.09615668]
[1645909672512,1.18515,2827.1,2826.4,0.0914]
[1645909672711,1.18515,2827.1,2826.4,0.09615671]
[1645909673116,0.88515,2827.1,2826.4,0.09615671]
[1645909673821,0.88515,2827.1,2826.4,0.0914]
[1645909674065,0.88515,2827.1,2826.4,0.09615671]
[1645909674464,1.34052473,2827.0,2826.4,0.09615671]
[1645909674665,2.22567473,2827.1,2826.4,0.09615671]
[1645909674860,2.22567473,2827.1,2826.4,0.0914]
[1645909675161,2.22567473,2827.1,2826.4,0.09615669]
[1645909676060,2.22567473,2827.1,2826.4,0.0914]
[1645909676260,2.22567473,2827.1,2826.4,0.0961567]
[1645909676866,1.34052473,2827.1,2826.4,0.0961567]
[1645909677064,1.69342473,2827.2,2826.4,0.0961567]
[1645909677265,1.99342473,2827.2,2826.3,0.00362505]
[1645909677464,1.99342473,2827.2,2826.3,1.49539065]
[1645909678123,2.13302473,2827.2,2826.3,1.49539065]
[1645909678723,2.13302473,2827.2,2826.0,1.1945]
[1645909678926,0.89466229,2826.9,2826.0,1.1945]
[1645909679324,2.13302473,2827.2,2826.0,1.1945]
[1645909679825,1.34052473,2827.1,2826.0,1.1945]
[1645909680027,0.00101917,2826.8,2826.0,1.1945]
[1645909680224,1.407897,2826.8,2826.0,1.1945]
[1645909680828,1.40687783,2826.8,2826.0,1.1945]
[1645909681459,1.41027484,2826.8,2826.3,0.00510187]
[1645909682061,1.41027484,2826.8,2826.0,1.1945]
[1645909682062,1.40687783,2826.8,2826.0,1.1945]
[1645909682459,1.41027502,2826.8,2826.3,0.00510192]
[1645909683264,1.40687783,2826.8,2826.0,2.60087708]
[1645909683465,4.91027158,2826.8,2826.3,0.00510089]
[1645909683668,1.41027158,2826.8,2826.3,0.00510089]
[1645909684366,0.89567934,2826.6,2826.3,0.00510089]
[1645909684566,0.89567934,2826.6,2826.1,1.13438469]
[1645909684766,0.89567934,2826.6,2826.3,0.00510089]
[1645909685412,0.00339375,2826.8,2826.3,0.00510089]
[1645909685413,0.89567934,2826.7,2826.3,0.00510089]
[1645909685613,0.89567934,2826.7,2825.9,0.00360877]
[1645909685814,0.89567934,2826.6,2825.9,0.00360877]
[1645909686015,0.89567934,2826.7,2826.3,0.00510086]
[1645909686315,1.40729587,2826.6,2826.3,0.00510086]
[1645909686913,1.40729587,2826.6,2825.9,1.0412483]
[1645909687114,1.40729587,2826.6,2826.3,0.00510086]
[1645909688123,1.40729587,2826.6,2825.9,0.00360877]
[1645909688320,1.40729587,2826.6,2826.3,0.00510132]
[1645909689371,0.89567934,2826.7,2826.0,1.03849207]
[1645909689570,0.89567934,2826.7,2826.3,0.00510132]
[1645909690574,0.89567934,2826.6,2826.1,0.00360877]
[1645909690772,0.89567934,2826.5,2826.3,0.00510134]
[1645909691573,0.89567934,2826.6,2826.3,0.00510134]
[1645909691772,0.89567934,2826.6,2826.1,0.00360877]
[1645909691980,0.89567934,2826.5,2826.3,0.00510119]